fUST/lending_fUST_20241202
["ID","MTS","AMOUNT","RATE_DAILY","PERIOD"]
[343938809,1733104254048,-543.41944706,0.00028767,7]
[343938810,1733104254058,-500.0,0.00028767,7]
[343938811,1733104254067,-500.0,0.00028767,7]
[343938812,1733104254077,-500.0,0.00028767,7]
[343938813,1733104254087,-500.0,0.00028767,7]
[343938814,1733104254101,-500.0,0.00028767,7]
[343938815,1733104254111,-528.4,0.00028767,7]
[343938816,1733104254120,-500.0,0.00028767,7]
[343938817,1733104254129,-500.0,0.00028767,7]
[343938818,1733104254140,-500.0,0.00028767,7]
[343938819,1733104254149,-500.0,0.00028767,7]
[343938820,1733104254159,-500.0,0.00028767,7]
[343938821,1733104254173,-500.0,0.00028767,7]
[343938822,1733104254183,-681.53,0.00028767,7]
[343938823,1733104254193,-690.54,0.00028767,7]
[343938824,1733104254202,-500.0,0.00028767,7]
[343938825,1733104254211,-500.0,0.00028767,7]
[343938826,1733104254221,-500.0,0.00028767,7]
[343938827,1733104254231,-988.0,0.00028767,7]
[343938828,1733104254240,-500.0,0.00028767,7]
[343938829,1733104254249,-512.68185448,0.00028767,7]
[343938830,1733104254258,-335.51790891,0.00028767,7]
[343938831,1733104254268,-500.0,0.00028767,7]
[343938832,1733104254277,-500.0,0.00028767,7]
[343938833,1733104254287,-500.0,0.00028767,7]
[343938834,1733104254296,-705.16,0.00028767,7]
[343938835,1733104254305,-524.01,0.00028767,7]
[343938836,1733104254316,-2666.41,0.00028767,7]
[343938837,1733104254325,-879.29,0.00028767,7]
[343938838,1733104254335,-171.595739,0.00028767,7]
[343938839,1733104254345,-500.0,0.00028767,7]
[343938840,1733104254355,-500.0,0.00028767,7]
[343938841,1733104254364,-500.0,0.00028767,7]
[343938842,1733104254374,-500.0,0.00028767,7]
[343938843,1733104254384,-2330.3,0.00028767,7]
[343938844,1733104254394,-151.0,0.00028767,7]
[343938845,1733104254403,-500.0,0.00028767,7]
[343938846,1733104254415,-545.73,0.00028767,7]
[343938847,1733104254424,-500.0,0.00028767,7]
[343938848,1733104254433,-500.0,0.00028767,7]
[343938849,1733104254442,-549.54180952,0.00028767,7]
[343938850,1733104254452,-334.68500043,0.00028767,7]
[343938851,1733104254461,-839.15,0.00028767,7]
[343938852,1733104254471,-500.0,0.00028767,7]
[343938853,1733104254480,-500.0,0.00028767,7]
[343938854,1733104254489,-1164.23,0.00028767,7]
[343938855,1733104254499,-500.0,0.00028767,7]
[343938856,1733104254508,-500.0,0.00028767,7]
[343938857,1733104254518,-500.0,0.00028767,7]
[343938858,1733104254527,-500.0,0.00028767,7]
[343938859,1733104254537,-589.8,0.00028767,7]
[343938860,1733104254546,-500.0,0.00028767,7]
[343938861,1733104254556,-500.0,0.00028767,7]
[343938862,1733104254565,-500.0,0.00028767,7]
[343938863,1733104254574,-741.12,0.00028767,7]
[343938864,1733104254583,-35198.57,0.00028767,7]
[343938865,1733104254593,-584.29871742,0.00028767,7]
[343938866,1733104254603,-5653.56,0.00028767,7]
[343938867,1733104254612,-500.0,0.00028767,7]
[343938868,1733104254622,-1087.13,0.00028767,7]
[343938869,1733104254631,-1637.6,0.00028767,7]
[343938870,1733104254640,-500.0,0.00028767,7]
[343938871,1733104254650,-500.0,0.00028767,7]
[343938872,1733104254660,-629.16806613,0.00028812,2]
[343938873,1733104254671,-321.316658,0.000289,7]
[343938874,1733104254681,-321.316658,0.000289,7]
[343938875,1733104254752,-220.826631,0.000289,7]
[343938876,1733104254763,-1389.63,0.000289,31]
[343938877,1733104254773,-1389.63,0.000289,31]
[343938878,1733104254783,-1389.63,0.000289,31]
[343938879,1733104254795,-1389.63,0.000289,31]
[343938880,1733104254805,-1389.63,0.000289,31]
[343938881,1733104254815,-1389.63,0.000289,31]
[343938882,1733104254826,-1389.63,0.000289,31]
[343938883,1733104254836,-1389.63,0.000289,31]
[343938884,1733104254846,-1389.63,0.000289,31]
[343938885,1733104254855,-1389.63,0.000289,31]
[343938886,1733104254864,-1389.63,0.000289,31]
[343938887,1733104254873,-1389.63,0.000289,31]
[343938888,1733104254883,-1389.63,0.000289,31]
[343938889,1733104254892,-1389.63,0.000289,31]
[343938890,1733104254901,-1389.63,0.000289,31]
[343938891,1733104254910,-1389.63,0.000289,31]
[343938892,1733104254921,-1389.63,0.000289,31]
[343938893,1733104254930,-1389.63,0.000289,31]
[343938894,1733104254939,-1389.63,0.000289,31]
[343938895,1733104254949,-1389.63,0.000289,31]
[343938896,1733104254957,-1389.63,0.000289,31]
[343938897,1733104254966,-1389.63,0.000289,31]
[343938898,1733104254976,-1389.63,0.000289,31]
[343938899,1733104254985,-1389.63,0.000289,31]
[343938900,1733104254994,-172.086238,0.00028918,2]
[343938901,1733104255003,-152.1113,0.00028918,2]
[343938902,1733104255012,-160.178672,0.00028918,2]
[343938903,1733104255022,-267.643593,0.00028918,2]
[343938904,1733104255031,-248.181594,0.00028918,2]
[343938905,1733104255041,-873.733188,0.00028918,2]
[343938906,1733104255050,-1006.17123099,0.00028922,5]
[343938907,1733104255060,-506.88457992,0.00028922,5]
[343938908,1733104255070,-151.0,0.00028952,7]
[343938909,1733104255080,-807.52619011,0.00028971,2]
[343938910,1733104255089,-274.33291477,0.00028981,2]
[343938911,1733104255099,-862.43753638,0.00029,2]
[343938912,1733104255113,-900.0,0.00029,120]
[343938913,1733104255123,-36967.48569,0.00029,120]
[343938914,1733104255132,-151.0,0.00029041,7]
[343938915,1733104255142,-153.269555,0.00029041,7]
[343938916,1733104255153,-503.84013759,0.00029041,7]
[343938917,1733104255164,-777.87,0.00029041,7]
[343938918,1733104255173,-500.0,0.00029041,7]
[343938919,1733104255184,-207.38710359,0.00029041,7]
[343938920,1733104255193,-500.0,0.00029041,7]
[343938921,1733104255203,-500.0,0.00029041,7]
[343938922,1733104255212,-151.0,0.00029041,7]
[343938923,1733104255222,-210.577054,0.00029041,7]
[343938924,1733104255231,-896.2,0.00029041,7]
[343938925,1733104255241,-500.0,0.00029041,7]
[343938926,1733104255250,-500.0,0.00029041,7]
[343938927,1733104255260,-500.0,0.00029041,7]
[343938928,1733104255269,-500.0,0.00029041,7]
[343938929,1733104255278,-500.0,0.00029041,7]
[343938930,1733104255287,-500.0,0.00029041,2]
[343938931,1733104255298,-1352.28,0.00029041,7]
[343938932,1733104255307,-1018.0,0.00029041,7]
[343938933,1733104255318,-500.0,0.00029041,7]
[343938934,1733104255328,-500.0,0.00029041,7]
[343938935,1733104255339,-829.06,0.00029041,7]
[343938936,1733104255350,-606.42,0.00029041,7]
[343938937,1733104255360,-500.0,0.00029041,7]
[343938938,1733104255371,-500.0,0.00029041,7]
[343938939,1733104255381,-500.0,0.00029041,7]
[343938940,1733104255391,-500.0,0.00029041,7]
[343938941,1733104255401,-500.0,0.00029041,7]
[343938942,1733104255414,-244.18256989,0.00029041,7]
[343938943,1733104255423,-500.0,0.00029041,7]
[343938944,1733104255432,-500.0,0.00029041,7]
[343938945,1733104255442,-500.0,0.00029041,7]
[343938946,1733104255452,-500.0,0.00029041,7]
[343938947,1733104255462,-500.0,0.00029041,7]
[343938948,1733104255472,-694.63,0.00029041,7]
[343938949,1733104255481,-151.0,0.00029041,7]
[343938950,1733104255492,-500.0,0.00029041,7]
[343938951,1733104255502,-563.35,0.00029041,7]
[343938952,1733104255512,-500.0,0.00029041,7]
[343938953,1733104255523,-500.0,0.00029041,7]
[343938954,1733104255533,-754.66,0.00029041,7]
[343938955,1733104255543,-597.20082057,0.00029041,7]
[343938956,1733104255552,-500.0,0.00029041,7]
[343938957,1733104255562,-500.0,0.00029041,7]
[343938958,1733104255571,-500.0,0.00029041,7]
[343938959,1733104255581,-599.73,0.00029041,7]
[343938960,1733104255591,-500.0,0.00029041,7]
[343938961,1733104255600,-500.0,0.00029041,7]
[343938962,1733104255610,-525.2172509,0.00029041,7]
[343938963,1733104255621,-500.0,0.00029041,7]
[343938964,1733104255631,-151.0,0.00029041,7]
[343938965,1733104255641,-500.0,0.00029041,7]
[343938966,1733104255651,-500.0,0.00029041,7]
[343938967,1733104255661,-500.0,0.00029041,7]
[343938968,1733104255672,-528.4,0.00029041,7]
[343938969,1733104255682,-500.0,0.00029041,7]
[343938970,1733104255692,-500.0,0.00029041,7]
[343938971,1733104255702,-500.0,0.00029041,7]
[343938972,1733104255712,-500.0,0.00029041,7]
[343938973,1733104255722,-500.0,0.00029041,7]
[343938974,1733104255731,-500.0,0.00029041,7]
[343938975,1733104255743,-681.53,0.00029041,7]
[343938976,1733104255755,-690.54,0.00029041,7]
[343938977,1733104255765,-500.0,0.00029041,7]
[343938978,1733104255776,-500.0,0.00029041,7]
[343938979,1733104255786,-500.0,0.00029041,7]
[343938980,1733104255797,-988.0,0.00029041,7]
[343938981,1733104255806,-304.51748852,0.00029041,7]
[343938982,1733104255816,-500.0,0.00029041,7]
[343938983,1733104255826,-500.0,0.00029041,7]
[343938984,1733104255836,-500.0,0.00029041,7]
[343938985,1733104255846,-705.16,0.00029041,7]
[343938986,1733104255863,-524.01,0.00029041,7]
[343938987,1733104255874,-2666.41,0.00029041,7]
[343938988,1733104255883,-879.29,0.00029041,7]
[343938989,1733104255893,-500.0,0.00029041,7]
[343938990,1733104255903,-500.0,0.00029041,7]
[343938991,1733104255915,-500.0,0.00029041,7]
[343938992,1733104255925,-500.0,0.00029041,7]
[343938993,1733104255935,-2330.3,0.00029041,7]
[343938994,1733104255944,-500.0,0.00029041,7]
[343938995,1733104255954,-545.73,0.00029041,7]
[343938996,1733104255963,-500.0,0.00029041,7]
[343938997,1733104255973,-500.0,0.00029041,7]
[343938998,1733104255983,-839.15,0.00029041,7]
[343938999,1733104255993,-500.0,0.00029041,7]
[343939000,1733104256064,-500.0,0.00029041,7]
[343939001,1733104256075,-1164.23,0.00029041,7]
[343939002,1733104256085,-500.0,0.00029041,7]
[343939003,1733104256096,-500.0,0.00029041,7]
[343939004,1733104256108,-500.0,0.00029041,7]
[343939005,1733104256118,-500.0,0.00029041,7]
[343939006,1733104256128,-589.8,0.00029041,7]
[343939007,1733104256140,-500.0,0.00029041,7]
[343939008,1733104256149,-500.0,0.00029041,7]
[343939009,1733104256165,-500.0,0.00029041,7]
[343939010,1733104256177,-741.12,0.00029041,7]
[343939011,1733104256198,-35198.57,0.00029041,7]
[343939012,1733104256220,-151.0,0.00029041,7]
[343939013,1733104256241,-5653.56,0.00029041,7]
[343939014,1733104256262,-500.0,0.00029041,7]
[343939015,1733104256283,-1087.13,0.00029041,7]
[343939016,1733104256303,-1637.6,0.00029041,7]
[343939017,1733104256314,-500.0,0.00029041,7]
[343939018,1733104256323,-500.0,0.00029041,7]
[343939019,1733104256333,-463.70461043,0.00029041,120]
[343939020,1733104256342,-151.0,0.00029044,6]
[343939021,1733104256351,-587.0,0.00029113,2]
[343939022,1733104256362,-162.736021,0.00029198,7]
[343939023,1733104256372,-1006.34278502,0.00029222,5]
[343939024,1733104256383,-807.52619011,0.00029252,2]
[343939025,1733104256392,-743.0,0.0002927,120]
[343939026,1733104256403,-743.0,0.0002928,120]
[343939027,1733104256413,-806.97876467,0.00029284,2]
[343939028,1733104256425,-151.0,0.00029284,7]
[343939029,1733104256435,-743.0,0.0002929,120]
[343939030,1733104256445,-151.0,0.00029315,7]
[343939031,1733104256454,-162.42701,0.00029315,7]
[343939032,1733104256463,-321.316658,0.00029315,7]
[343939033,1733104256473,-321.316658,0.00029315,7]
[343939034,1733104256482,-777.87,0.00029315,7]
[343939035,1733104256492,-500.0,0.00029315,7]
[343939036,1733104256502,-500.0,0.00029315,7]
[343939037,1733104256511,-500.0,0.00029315,7]
[343939038,1733104256522,-896.2,0.00029315,7]
[343939039,1733104256533,-500.0,0.00029315,7]
[343939040,1733104256543,-500.0,0.00029315,7]
[343939041,1733104256553,-500.0,0.00029315,7]
[343939042,1733104256563,-500.0,0.00029315,7]
[343939043,1733104256574,-151.0,0.00029315,7]
[343939044,1733104256583,-500.0,0.00029315,7]
[343939045,1733104256593,-151.0,0.00029315,7]
[343939046,1733104256603,-500.0,0.00029315,2]
[343939047,1733104256612,-1352.28,0.00029315,7]
[343939048,1733104256622,-1018.0,0.00029315,7]
[343939049,1733104256633,-500.0,0.00029315,7]
[343939050,1733104256642,-500.0,0.00029315,7]
[343939051,1733104256652,-829.06,0.00029315,7]
[343939052,1733104256662,-606.42,0.00029315,7]
[343939053,1733104256675,-500.0,0.00029315,7]
[343939054,1733104256685,-500.0,0.00029315,7]
[343939055,1733104256695,-500.0,0.00029315,7]
[343939056,1733104256704,-151.0,0.00029315,7]
[343939057,1733104256714,-500.0,0.00029315,7]
[343939058,1733104256724,-500.0,0.00029315,7]
[343939059,1733104256734,-500.0,0.00029315,7]
[343939060,1733104256744,-500.0,0.00029315,7]
[343939061,1733104256753,-500.0,0.00029315,7]
[343939062,1733104256763,-500.0,0.00029315,7]
[343939063,1733104256773,-500.0,0.00029315,7]
[343939064,1733104256783,-694.63,0.00029315,7]
[343939065,1733104256792,-500.0,0.00029315,7]
[343939066,1733104256803,-563.35,0.00029315,7]
[343939067,1733104256812,-500.0,0.00029315,7]
[343939068,1733104256822,-500.0,0.00029315,7]
[343939069,1733104256832,-754.66,0.00029315,7]
[343939070,1733104256841,-500.0,0.00029315,7]
[343939071,1733104256850,-500.0,0.00029315,7]
[343939072,1733104256860,-500.0,0.00029315,7]
[343939073,1733104256870,-599.73,0.00029315,7]
[343939074,1733104256879,-500.0,0.00029315,7]
[343939075,1733104256888,-500.0,0.00029315,7]
[343939076,1733104256898,-500.0,0.00029315,7]
[343939077,1733104256913,-186.45567116,0.00029315,7]
[343939078,1733104256924,-500.0,0.00029315,7]
[343939079,1733104256933,-500.0,0.00029315,7]
[343939080,1733104256942,-528.4,0.00029315,7]
[343939081,1733104256952,-509.10275459,0.00029315,7]
[343939082,1733104256961,-500.0,0.00029315,7]
[343939083,1733104256971,-500.0,0.00029315,7]
[343939084,1733104256980,-500.0,0.00029315,7]
[343939085,1733104256990,-500.0,0.00029315,7]
[343939086,1733104257000,-500.0,0.00029315,7]
[343939087,1733104257010,-681.53,0.00029315,7]
[343939088,1733104257019,-690.54,0.00029315,7]
[343939089,1733104257029,-500.0,0.00029315,7]
[343939090,1733104257038,-500.0,0.00029315,7]
[343939091,1733104257048,-380.16245808,0.00029315,7]
[343939092,1733104257057,-988.0,0.00029315,7]
[343939093,1733104257067,-500.0,0.00029315,7]
[343939094,1733104257077,-500.0,0.00029315,7]
[343939095,1733104257086,-500.0,0.00029315,7]
[343939096,1733104257101,-705.16,0.00029315,7]
[343939097,1733104257111,-524.01,0.00029315,7]
[343939098,1733104257120,-2666.41,0.00029315,7]
[343939099,1733104257130,-879.29,0.00029315,7]
[343939100,1733104257141,-162.82359901,0.00029315,7]
[343939101,1733104257150,-500.0,0.00029315,7]
[343939102,1733104257159,-420.81778758,0.00029315,7]
[343939103,1733104257171,-500.0,0.00029315,7]
[343939104,1733104257182,-2330.3,0.00029315,7]
[343939105,1733104257192,-151.0,0.00029315,7]
[343939106,1733104257201,-500.0,0.00029315,7]
[343939107,1733104257211,-545.73,0.00029315,7]
[343939108,1733104257221,-500.0,0.00029315,7]
[343939109,1733104257231,-500.0,0.00029315,7]
[343939110,1733104257240,-839.15,0.00029315,7]
[343939111,1733104257250,-500.0,0.00029315,7]
[343939112,1733104257259,-500.0,0.00029315,7]
[343939113,1733104257270,-1164.23,0.00029315,7]
[343939114,1733104257280,-500.0,0.00029315,7]
[343939115,1733104257346,-500.0,0.00029315,7]
[343939116,1733104257356,-500.0,0.00029315,7]
[343939117,1733104257365,-500.0,0.00029315,7]
[343939118,1733104257375,-589.8,0.00029315,7]
[343939119,1733104257384,-500.0,0.00029315,7]
[343939120,1733104257393,-500.0,0.00029315,7]
[343939121,1733104257402,-500.0,0.00029315,7]
[343939122,1733104257412,-35198.57,0.00029315,7]
[343939123,1733104257426,-741.12,0.00029315,7]
[343939124,1733104257435,-5653.56,0.00029315,7]
[343939125,1733104257444,-500.0,0.00029315,7]
[343939126,1733104257454,-1087.13,0.00029315,7]
[343939127,1733104257463,-1637.6,0.00029315,7]
[343939128,1733104257472,-500.0,0.00029315,7]
[343939129,1733104257482,-500.0,0.00029315,7]
[343939130,1733104257491,-150.0,0.000294,2]
[343939131,1733104257500,-2920.63046015,0.000294,7]
[343939132,1733104257510,-3817.7630048,0.00029465,7]
[343939133,1733104257519,-2000.0,0.000295,2]
[343939134,1733104257528,-300.0,0.000295,2]
[343939135,1733104257538,-54014.89016723,0.000295,14]
[343939136,1733104257547,-151.0,0.000295,7]
[343939137,1733104257558,-191.419244,0.000295,7]
[343939138,1733104257567,-151.0,0.000295,7]
[343939139,1733104257577,-151.0,0.000295,7]
[343939140,1733104257587,-807.52619011,0.00029534,2]
[343939141,1733104257597,-151.0,0.00029535,7]
[343939142,1733104257607,-2500.0,0.00029536,3]
[343939143,1733104257620,-2500.0,0.00029545,3]
[343939144,1733104257630,-2500.0,0.00029554,3]
[343939145,1733104257639,-2500.0,0.00029563,3]
[343939146,1733104257649,-743.0,0.0002957,120]
[343939147,1733104257658,-2500.0,0.00029571,3]
[343939148,1733104257671,-743.0,0.0002958,120]
[343939149,1733104257681,-2500.0,0.0002958,3]
[343939150,1733104257690,-151.0,0.00029589,7]
[343939151,1733104257700,-777.87,0.00029589,7]
[343939152,1733104257710,-500.0,0.00029589,7]
[343939153,1733104257719,-500.0,0.00029589,7]
[343939154,1733104257729,-2500.0,0.00029589,3]
[343939155,1733104257739,-599.8166855,0.00029589,7]
[343939156,1733104257749,-151.0,0.00029589,7]
[343939157,1733104257758,-896.2,0.00029589,7]
[343939158,1733104257768,-500.0,0.00029589,7]
[343939159,1733104257778,-500.0,0.00029589,7]
[343939160,1733104257787,-500.0,0.00029589,7]
[343939161,1733104257797,-500.0,0.00029589,7]
[343939162,1733104257806,-151.0,0.00029589,7]
[343939163,1733104257816,-582.30081029,0.00029589,7]
[343939164,1733104257825,-151.0,0.00029589,7]
[343939165,1733104257834,-207.808513,0.00029589,7]
[343939166,1733104257844,-500.0,0.00029589,2]
[343939167,1733104257854,-1352.28,0.00029589,7]
[343939168,1733104257863,-1018.0,0.00029589,7]
[343939169,1733104257878,-422.50729181,0.00029589,7]
[343939170,1733104257896,-500.0,0.00029589,7]
[343939171,1733104257911,-829.06,0.00029589,7]
[343939172,1733104257930,-606.42,0.00029589,7]
[343939173,1733104257947,-500.0,0.00029589,7]
[343939174,1733104257965,-500.0,0.00029589,7]
[343939175,1733104257982,-500.0,0.00029589,7]
[343939176,1733104257998,-151.0,0.00029589,7]
[343939177,1733104258016,-500.0,0.00029589,7]
[343939178,1733104258030,-500.0,0.00029589,7]
[343939179,1733104258044,-500.0,0.00029589,7]
[343939180,1733104258061,-500.0,0.00029589,7]
[343939181,1733104258080,-500.0,0.00029589,7]
[343939182,1733104258099,-500.0,0.00029589,7]
[343939183,1733104258118,-500.0,0.00029589,7]
[343939184,1733104258131,-694.63,0.00029589,7]
[343939185,1733104258151,-500.0,0.00029589,7]
[343939186,1733104258168,-563.35,0.00029589,7]
[343939187,1733104258184,-214.96402705,0.00029589,7]
[343939188,1733104258200,-500.0,0.00029589,7]
[343939189,1733104258213,-754.66,0.00029589,7]
[343939190,1733104258228,-500.0,0.00029589,7]
[343939191,1733104258242,-598.30288675,0.00029589,7]
[343939192,1733104258255,-500.0,0.00029589,7]
[343939193,1733104258269,-599.73,0.00029589,7]
[343939194,1733104258283,-500.0,0.00029589,7]
[343939195,1733104258296,-500.0,0.00029589,7]
[343939196,1733104258311,-500.0,0.00029589,7]
[343939197,1733104258326,-500.0,0.00029589,7]
[343939198,1733104258341,-500.0,0.00029589,7]
[343939199,1733104258356,-528.4,0.00029589,7]
[343939200,1733104258371,-500.0,0.00029589,7]
[343939201,1733104258386,-453.41905154,0.00029589,7]
[343939202,1733104258401,-500.0,0.00029589,7]
[343939203,1733104258414,-500.0,0.00029589,7]
[343939204,1733104258430,-500.0,0.00029589,7]
[343939205,1733104258443,-681.53,0.00029589,7]
[343939206,1733104258457,-690.54,0.00029589,7]
[343939207,1733104258471,-500.0,0.00029589,7]
[343939208,1733104258485,-500.0,0.00029589,7]
[343939209,1733104258499,-988.0,0.00029589,7]
[343939210,1733104258515,-500.0,0.00029589,7]
[343939211,1733104258531,-500.0,0.00029589,7]
[343939212,1733104258546,-500.0,0.00029589,7]
[343939213,1733104258562,-705.16,0.00029589,7]
[343939214,1733104258577,-524.01,0.00029589,7]
[343939215,1733104258593,-2666.41,0.00029589,7]
[343939216,1733104258609,-879.29,0.00029589,7]
[343939217,1733104258623,-500.0,0.00029589,7]
[343939218,1733104258637,-500.0,0.00029589,7]
[343939219,1733104258651,-2330.3,0.00029589,7]
[343939220,1733104258663,-151.0,0.00029589,7]
[343939221,1733104258757,-500.0,0.00029589,7]
[343939222,1733104258775,-545.73,0.00029589,7]
[343939223,1733104258785,-500.0,0.00029589,7]
[343939224,1733104258795,-190.82626078,0.00029589,7]
[343939225,1733104258805,-839.15,0.00029589,7]
[343939226,1733104258814,-500.0,0.00029589,7]
[343939227,1733104258824,-500.0,0.00029589,7]
[343939228,1733104258834,-1164.23,0.00029589,7]
[343939229,1733104258844,-500.0,0.00029589,7]
[343939230,1733104258854,-500.0,0.00029589,7]
[343939231,1733104258863,-500.0,0.00029589,7]
[343939232,1733104258873,-500.0,0.00029589,7]
[343939233,1733104258883,-589.8,0.00029589,7]
[343939234,1733104258893,-500.0,0.00029589,7]
[343939235,1733104258903,-500.0,0.00029589,7]
[343939236,1733104258912,-500.0,0.00029589,7]
[343939237,1733104258924,-35198.57,0.00029589,7]
[343939238,1733104258933,-741.12,0.00029589,7]
[343939239,1733104258942,-5653.56,0.00029589,7]
[343939240,1733104258954,-265.19745156,0.00029589,7]
[343939241,1733104258965,-1087.13,0.00029589,7]
[343939242,1733104258975,-1637.6,0.00029589,7]
[343939243,1733104258984,-500.0,0.00029589,7]
[343939244,1733104258994,-500.0,0.00029589,7]
[343939245,1733104259003,-743.0,0.0002959,120]
[343939246,1733104259013,-629.16806613,0.00029595,2]
[343939247,1733104259023,-28963.12997449,0.000296,7]
[343939248,1733104259032,-151.0,0.000296,7]
[343939249,1733104259042,-321.316658,0.000296,7]
[343939250,1733104259051,-321.316658,0.000296,7]
[343939251,1733104259061,-1389.63,0.000296,31]
[343939252,1733104259071,-1389.63,0.000296,31]
[343939253,1733104259081,-1389.63,0.000296,31]
[343939254,1733104259094,-1389.63,0.000296,31]
[343939255,1733104259104,-1389.63,0.000296,31]
[343939256,1733104259114,-1389.63,0.000296,31]
[343939257,1733104259123,-1389.63,0.000296,31]
[343939258,1733104259134,-1389.63,0.000296,31]
[343939259,1733104259144,-1389.63,0.000296,31]
[343939260,1733104259153,-1389.63,0.000296,31]
[343939261,1733104259163,-1389.63,0.000296,31]
[343939262,1733104259175,-1389.63,0.000296,31]
[343939263,1733104259186,-1389.63,0.000296,31]
[343939264,1733104259196,-1389.63,0.000296,31]
[343939265,1733104259206,-1389.63,0.000296,31]
[343939266,1733104259215,-1389.63,0.000296,31]
[343939267,1733104259225,-1389.63,0.000296,31]
[343939268,1733104259235,-1389.63,0.000296,31]
[343939269,1733104259246,-1389.63,0.000296,31]
[343939270,1733104259256,-1389.63,0.000296,31]
[343939271,1733104259265,-1389.63,0.000296,31]
[343939272,1733104259275,-1389.63,0.000296,31]
[343939273,1733104259285,-1389.63,0.000296,31]
[343939274,1733104259295,-1389.63,0.000296,31]
[343939275,1733104259305,-175109.17556467,0.0002961,2]
[343939276,1733104259315,-151.0,0.0002961,7]
[343939277,1733104259331,-151.0,0.0002961,7]
[343939278,1733104259342,-321.316658,0.0002961,7]
[343939279,1733104259360,-321.316658,0.0002961,7]
[343939280,1733104259378,-167.286032,0.0002961,7]
[343939281,1733104259397,-151.0,0.0002961,7]
[343939282,1733104259418,-151.0,0.0002961,7]
[343939283,1733104259438,-151.0,0.0002961,7]
[343939284,1733104259458,-151.0,0.0002961,7]
[343939285,1733104259478,-151.0,0.0002961,7]
[343939286,1733104259498,-151.0,0.0002961,7]
[343939287,1733104259511,-151.0,0.0002961,7]
[343939288,1733104259520,-743.0,0.0002968,120]
[343939289,1733104259530,-743.0,0.0002969,120]
[343939290,1733104259540,-579.31597006,0.00029778,2]
[343939291,1733104259549,-195.4090522,0.00029799,30]
[343939292,1733104259559,-318714.21326387,0.000298,120]
[343939293,1733104259568,-161.432278,0.000298,7]
[343939294,1733104259578,-151.0,0.000298,7]
[343939295,1733104259587,-321.316658,0.000298,7]
[343939296,1733104259597,-321.316658,0.000298,7]
[343939297,1733104259607,-151.0,0.000298,7]
[343939298,1733104259617,-186.573969,0.000298,7]
[343939299,1733104259628,-151.0,0.000298,7]
[343939300,1733104259640,-151.0,0.000298,7]
[343939301,1733104259649,-151.0,0.000298,7]
[343939302,1733104259659,-151.0,0.000298,7]
[343939303,1733104259670,-151.0,0.000298,7]
[343939304,1733104259679,-151.0,0.000298,7]
[343939305,1733104259688,-807.52619011,0.00029815,2]
[343939306,1733104259698,-777.87,0.00029863,7]
[343939307,1733104259707,-500.0,0.00029863,7]
[343939308,1733104259717,-500.0,0.00029863,7]